fUSD/lending_fUSD_20240331
["ID","MTS","AMOUNT","RATE_DAILY","PERIOD"]
[321136172,1711907472986,-500.0,0.00056438,120]
[321136173,1711907472996,-1276.31,0.00056438,120]
[321136174,1711907473005,-500.0,0.00056438,120]
[321136175,1711907473014,-500.0,0.00056438,120]
[321136176,1711907473023,-2818.95,0.00056438,120]
[321136177,1711907473033,-577.42,0.00056438,120]
[321136178,1711907473042,-500.0,0.00056438,120]
[321136179,1711907473051,-1477.96,0.00056438,120]
[321136180,1711907473060,-1654.56,0.00056438,120]
[321136181,1711907473070,-591.88,0.00056438,120]
[321136182,1711907473079,-811.9,0.00056438,120]
[321136183,1711907473089,-500.0,0.00056438,120]
[321136184,1711907473098,-1667.23,0.00056438,120]
[321136185,1711907473107,-540.65,0.00056438,120]
[321136186,1711907473117,-197.843539,0.00056438,120]
[321136187,1711907473125,-218.43,0.00056438,120]
[321136188,1711907473135,-197.843547,0.00056438,120]
[321136189,1711907473144,-500.0,0.00056438,120]
[321136190,1711907473153,-500.0,0.00056438,120]
[321136191,1711907473162,-500.0,0.00056438,120]
[321136192,1711907473171,-500.0,0.00056438,120]
[321136193,1711907473180,-718.34,0.00056438,120]
[321136194,1711907473189,-500.0,0.00056438,120]
[321136195,1711907473199,-1412.62,0.00056438,120]
[321136196,1711907473208,-505.8,0.00056438,120]
[321136197,1711907473218,-2163.44,0.00056438,120]
[321136198,1711907473227,-500.0,0.00056438,120]
[321136199,1711907473236,-500.0,0.00056438,120]
[321136200,1711907473352,-4640.93,0.00056438,120]
[321136201,1711907473362,-2308.94,0.00056438,120]
[321136202,1711907473372,-4439.46,0.00056438,120]
[321136203,1711907473382,-500.0,0.00056438,120]
[321136204,1711907473392,-713.74,0.00056438,120]
[321136205,1711907473401,-574.37,0.00056438,120]
[321136206,1711907473412,-818.49,0.00056438,120]
[321136207,1711907473422,-2084.69,0.00056438,120]
[321136208,1711907473433,-2318.29,0.00056438,120]
[321136209,1711907473450,-1422.03,0.00056438,120]
[321136210,1711907473462,-500.0,0.00056438,120]
[321136211,1711907473473,-500.0,0.00056438,2]
[321136212,1711907473483,-500.0,0.00056438,120]
[321136213,1711907473494,-4939.3,0.00056438,120]
[321136214,1711907473504,-500.0,0.00056438,120]
[321136215,1711907473518,-500.0,0.00056438,120]
[321136216,1711907473530,-500.0,0.00056438,120]
[321136217,1711907473540,-384.98057269,0.00056438,120]
[321136218,1711907473550,-497.74,0.00056438,120]
[321136219,1711907473560,-500.0,0.00056438,120]
[321136220,1711907473570,-6488.58,0.00056438,120]
[321136221,1711907473579,-516.59,0.00056438,120]
[321136222,1711907473589,-500.0,0.00056438,120]
[321136223,1711907473598,-500.0,0.00056438,120]
[321136224,1711907473608,-3218.95,0.00056438,120]
[321136225,1711907473618,-1667.88,0.00056438,120]
[321136226,1711907473627,-677.03,0.00056438,120]
[321136227,1711907473636,-513.19,0.00056438,120]
[321136228,1711907473646,-848.39,0.00056438,120]
[321136229,1711907473655,-2067.47,0.00056438,120]
[321136230,1711907473665,-500.0,0.00056438,120]
[321136231,1711907473675,-830.01,0.00056438,120]
[321136232,1711907473685,-296.0,0.00056438,120]
[321136233,1711907473694,-500.0,0.00056438,120]
[321136234,1711907473704,-1115.96,0.00056438,120]
[321136235,1711907473713,-500.0,0.00056438,120]
[321136236,1711907473723,-722.46,0.00056438,120]
[321136237,1711907473733,-2662.12,0.00056438,120]
[321136238,1711907473743,-185.64,0.00056438,120]
[321136239,1711907473753,-714.15,0.00056438,120]
[321136240,1711907473763,-500.0,0.00056438,120]
[321136241,1711907473773,-500.0,0.00056438,120]
[321136242,1711907473783,-1147.71,0.00056438,120]
[321136243,1711907473793,-1997.29,0.00056438,120]
[321136244,1711907473803,-7535.35,0.00056438,120]
[321136245,1711907473813,-500.0,0.00056438,120]
[321136246,1711907473824,-500.0,0.00056438,120]
[321136247,1711907473835,-500.0,0.00056438,120]
[321136248,1711907473845,-3990.2,0.00056438,120]
[321136249,1711907473854,-500.0,0.00056438,120]
[321136250,1711907473864,-2974.84,0.00056438,120]
[321136251,1711907473873,-500.0,0.00056438,120]
[321136252,1711907473883,-500.0,0.00056438,120]
[321136253,1711907473893,-500.0,0.00056438,7]
[321136254,1711907473903,-624.32,0.00056438,120]
[321136255,1711907473912,-500.0,0.00056438,120]
[321136256,1711907473922,-500.0,0.00056438,120]
[321136257,1711907473931,-500.0,0.00056438,120]
[321136258,1711907473941,-500.0,0.00056438,120]
[321136259,1711907473950,-614.73,0.00056438,120]
[321136260,1711907473959,-500.0,0.00056438,120]
[321136261,1711907473969,-500.0,0.00056438,120]
[321136262,1711907473978,-500.0,0.00056438,120]
[321136263,1711907473988,-500.0,0.00056438,120]
[321136264,1711907473998,-500.0,0.00056438,120]
[321136265,1711907474007,-500.0,0.00056438,120]
[321136266,1711907474016,-895.49,0.00056438,120]
[321136267,1711907474026,-744.4,0.00056438,120]
[321136268,1711907474035,-500.0,0.00056438,120]
[321136269,1711907474046,-500.0,0.00056438,120]
[321136270,1711907474056,-500.0,0.00056438,120]
[321136271,1711907474065,-1000.0,0.00056484,120]
[321136272,1711907474075,-2606.37,0.00056684,30]
[321136273,1711907474085,-500.0,0.00056712,120]
[321136274,1711907474099,-500.0,0.00056712,120]
[321136275,1711907474108,-608.18,0.00056712,120]
[321136276,1711907474120,-500.0,0.00056712,120]
[321136277,1711907474138,-500.0,0.00056712,120]
[321136278,1711907474147,-500.0,0.00056712,120]
[321136279,1711907474157,-500.0,0.00056712,120]
[321136280,1711907474174,-500.0,0.00056712,120]
[321136281,1711907474186,-500.0,0.00056712,120]
[321136282,1711907474202,-500.0,0.00056712,120]
[321136283,1711907474215,-700.81,0.00056712,120]
[321136284,1711907474227,-295.96,0.00056712,120]
[321136285,1711907474240,-500.0,0.00056712,120]
[321136286,1711907474253,-270.85132212,0.00056712,120]
[321136287,1711907474267,-302.39,0.00056712,120]
[321136288,1711907474280,-505.88,0.00056712,120]
[321136289,1711907474289,-500.0,0.00056712,120]
[321136290,1711907474299,-500.0,0.00056712,120]
[321136291,1711907474309,-500.0,0.00056712,120]
[321136292,1711907474319,-500.0,0.00056712,120]
[321136293,1711907474330,-4907.73,0.00056712,120]
[321136294,1711907474342,-500.0,0.00056712,50]
[321136295,1711907474352,-1609.87,0.00056712,120]
[321136296,1711907474361,-500.0,0.00056712,120]
[321136297,1711907474373,-402.97,0.00056712,120]
[321136298,1711907474382,-990.64,0.00056712,120]
[321136299,1711907474392,-500.0,0.00056712,120]
[321136300,1711907474402,-500.0,0.00056712,120]
[321136301,1711907474411,-500.0,0.00056712,120]
[321136302,1711907474421,-500.0,0.00056712,120]
[321136303,1711907474430,-10457.21,0.00056712,120]
[321136304,1711907474441,-500.0,0.00056712,120]
[321136305,1711907474450,-500.0,0.00056712,120]
[321136306,1711907474460,-964.49,0.00056712,120]
[321136307,1711907474469,-500.0,0.00056712,120]
[321136308,1711907474478,-500.0,0.00056712,120]
[321136309,1711907474487,-500.0,0.00056712,120]
[321136310,1711907474497,-755.7,0.00056712,120]
[321136311,1711907474509,-500.0,0.00056712,120]
[321136312,1711907474518,-722.56,0.00056712,120]
[321136313,1711907474527,-500.0,0.00056712,120]
[321136314,1711907474537,-500.0,0.00056712,120]
[321136315,1711907474546,-500.0,0.00056712,120]
[321136316,1711907474555,-556.76951016,0.00056712,120]
[321136317,1711907474565,-1026.37,0.00056712,120]
[321136318,1711907474577,-1126.75,0.00056712,120]
[321136319,1711907474586,-1688.27,0.00056712,21]
[321136320,1711907474595,-500.0,0.00056712,120]
[321136321,1711907474604,-500.0,0.00056712,120]
[321136322,1711907474614,-500.0,0.00056712,120]
[321136323,1711907474623,-500.0,0.00056712,120]
[321136324,1711907474632,-660.13,0.00056712,120]
[321136325,1711907474643,-500.0,0.00056712,120]
[321136326,1711907474652,-500.0,0.00056712,120]
[321136327,1711907474661,-500.0,0.00056712,120]
[321136328,1711907474670,-500.0,0.00056712,120]
[321136329,1711907474680,-1092.39,0.00056712,120]
[321136330,1711907474690,-14029.33,0.00056712,120]
[321136331,1711907474701,-500.0,0.00056712,120]
[321136332,1711907474711,-1975.75,0.00056712,120]
[321136333,1711907474721,-500.0,0.00056712,120]
[321136334,1711907474731,-500.0,0.00056712,120]
[321136335,1711907474741,-500.0,0.00056712,120]
[321136336,1711907474750,-646.2,0.00056712,120]
[321136337,1711907474760,-500.0,0.00056712,120]
[321136338,1711907474769,-547.4,0.00056712,120]
[321136339,1711907474779,-500.0,0.00056712,120]
[321136340,1711907474789,-10099.07,0.00056712,120]
[321136341,1711907474799,-546.81,0.00056712,120]
[321136342,1711907474809,-500.0,0.00056712,120]
[321136343,1711907474820,-500.0,0.00056712,120]
[321136344,1711907474832,-504.69,0.00056712,120]
[321136345,1711907474842,-500.0,0.00056712,120]
[321136346,1711907474851,-500.0,0.00056712,120]
[321136347,1711907474861,-500.0,0.00056712,120]
[321136348,1711907474871,-500.0,0.00056712,120]
[321136349,1711907474882,-500.0,0.00056712,120]
[321136350,1711907474892,-500.0,0.00056712,120]
[321136351,1711907474901,-500.0,0.00056712,120]
[321136352,1711907474910,-500.0,0.00056712,120]
[321136353,1711907474920,-500.0,0.00056712,120]
[321136354,1711907474930,-500.0,0.00056712,120]
[321136355,1711907474939,-5131.78,0.00056712,120]
[321136356,1711907474949,-500.0,0.00056712,120]
[321136357,1711907474959,-1715.12,0.00056712,120]
[321136358,1711907474969,-573.07,0.00056712,120]
[321136359,1711907474979,-500.0,0.00056712,120]
[321136360,1711907474988,-500.0,0.00056712,120]
[321136361,1711907474997,-500.0,0.00056712,120]
[321136362,1711907475007,-500.0,0.00056712,120]
[321136363,1711907475016,-500.0,0.00056712,120]
[321136364,1711907475025,-626.85,0.00056712,120]
[321136365,1711907475035,-947.24,0.00056712,120]
[321136366,1711907475044,-500.0,0.00056712,120]
[321136367,1711907475054,-500.0,0.00056712,120]
[321136368,1711907475063,-500.0,0.00056712,120]
[321136369,1711907475073,-500.0,0.00056712,120]
[321136370,1711907475083,-500.0,0.00056712,120]
[321136371,1711907475190,-649.68,0.00056712,120]
[321136372,1711907475200,-500.0,0.00056712,120]
[321136373,1711907475210,-500.0,0.00056712,120]
[321136374,1711907475220,-6434.68,0.00056712,120]
[321136375,1711907475230,-916.81,0.00056712,120]
[321136376,1711907475239,-2281.86,0.00056712,120]
[321136377,1711907475249,-500.0,0.00056712,120]
[321136378,1711907475258,-500.0,0.00056712,120]
[321136379,1711907475268,-1094.52,0.00056712,120]
[321136380,1711907475277,-1655.18,0.00056712,120]
[321136381,1711907475286,-531.28,0.00056712,120]
[321136382,1711907475295,-1439.29,0.00056712,120]
[321136383,1711907475305,-500.0,0.00056712,120]
[321136384,1711907475315,-500.0,0.00056712,120]
[321136385,1711907475324,-1210.67,0.00056712,120]
[321136386,1711907475336,-627.19,0.00056712,120]
[321136387,1711907475347,-2658.74,0.00056712,120]
[321136388,1711907475357,-500.0,0.00056712,120]
[321136389,1711907475366,-3592.37,0.00056712,120]
[321136390,1711907475377,-500.0,0.00056712,120]
[321136391,1711907475386,-500.0,0.00056712,120]
[321136392,1711907475396,-611.83,0.00056712,120]
[321136393,1711907475406,-500.0,0.00056712,120]
[321136394,1711907475416,-500.0,0.00056712,120]
[321136395,1711907475426,-500.0,0.00056712,120]
[321136396,1711907475435,-1276.31,0.00056712,120]
[321136397,1711907475444,-500.0,0.00056712,120]
[321136398,1711907475455,-217.48,0.00056712,120]
[321136399,1711907475464,-2818.95,0.00056712,120]
[321136400,1711907475474,-577.42,0.00056712,120]
[321136401,1711907475484,-500.0,0.00056712,120]
[321136402,1711907475496,-1477.96,0.00056712,120]
[321136403,1711907475506,-1654.56,0.00056712,120]
[321136404,1711907475515,-591.88,0.00056712,120]
[321136405,1711907475526,-811.9,0.00056712,120]
[321136406,1711907475536,-500.0,0.00056712,120]
[321136407,1711907475545,-540.65,0.00056712,120]
[321136408,1711907475554,-1667.23,0.00056712,120]
[321136409,1711907475564,-500.0,0.00056712,120]
[321136410,1711907475574,-500.0,0.00056712,120]
[321136411,1711907475585,-500.0,0.00056712,120]
[321136412,1711907475595,-500.0,0.00056712,120]
[321136413,1711907475604,-718.34,0.00056712,120]
[321136414,1711907475614,-500.0,0.00056712,120]
[321136415,1711907475625,-1412.62,0.00056712,120]
[321136416,1711907475634,-505.8,0.00056712,120]
[321136417,1711907475645,-2163.44,0.00056712,120]
[321136418,1711907475654,-500.0,0.00056712,120]
[321136419,1711907475665,-376.0,0.00056712,120]
[321136420,1711907475675,-4640.93,0.00056712,120]
[321136421,1711907475685,-2308.94,0.00056712,120]
[321136422,1711907475695,-4439.46,0.00056712,120]
[321136423,1711907475705,-318.88,0.00056712,120]
[321136424,1711907475715,-713.74,0.00056712,120]
[321136425,1711907475726,-574.37,0.00056712,120]
[321136426,1711907475736,-818.49,0.00056712,120]
[321136427,1711907475747,-2084.69,0.00056712,120]
[321136428,1711907475758,-2318.29,0.00056712,120]
[321136429,1711907475768,-1422.03,0.00056712,120]
[321136430,1711907475778,-500.0,0.00056712,120]
[321136431,1711907475788,-500.0,0.00056712,2]
[321136432,1711907475798,-500.0,0.00056712,120]
[321136433,1711907475808,-4939.3,0.00056712,120]
[321136434,1711907475818,-500.0,0.00056712,120]
[321136435,1711907475829,-571.09,0.00056712,120]
[321136436,1711907475839,-248.52,0.00056712,120]
[321136437,1711907475849,-500.0,0.00056712,120]
[321136438,1711907475859,-6488.58,0.00056712,120]
[321136439,1711907475869,-500.0,0.00056712,120]
[321136440,1711907475879,-500.0,0.00056712,120]
[321136441,1711907475890,-3218.95,0.00056712,120]
[321136442,1711907475900,-1667.88,0.00056712,120]
[321136443,1711907475909,-677.03,0.00056712,120]
[321136444,1711907475919,-513.19,0.00056712,120]
[321136445,1711907475928,-848.39,0.00056712,120]
[321136446,1711907475940,-2067.47,0.00056712,120]
[321136447,1711907475950,-554.62248172,0.00056712,120]
[321136448,1711907475960,-830.01,0.00056712,120]
[321136449,1711907475970,-500.0,0.00056712,120]
[321136450,1711907475985,-1115.96,0.00056712,120]
[321136451,1711907476005,-500.0,0.00056712,120]
[321136452,1711907476022,-722.46,0.00056712,120]
[321136453,1711907476040,-2662.12,0.00056712,120]
[321136454,1711907476060,-714.15,0.00056712,120]
[321136455,1711907476077,-500.0,0.00056712,120]
[321136456,1711907476094,-648.84197069,0.00056712,120]
[321136457,1711907476112,-1147.71,0.00056712,120]
[321136458,1711907476129,-1997.29,0.00056712,120]
[321136459,1711907476148,-7535.35,0.00056712,120]
[321136460,1711907476164,-500.0,0.00056712,120]
[321136461,1711907476184,-500.0,0.00056712,120]
[321136462,1711907476205,-500.0,0.00056712,120]
[321136463,1711907476219,-3990.2,0.00056712,120]
[321136464,1711907476235,-617.11135178,0.00056712,120]
[321136465,1711907476251,-2974.84,0.00056712,120]
[321136466,1711907476264,-500.0,0.00056712,120]
[321136467,1711907476281,-424.82,0.00056712,120]
[321136468,1711907476296,-500.0,0.00056712,7]
[321136469,1711907476311,-624.32,0.00056712,120]
[321136470,1711907476328,-500.0,0.00056712,120]
[321136471,1711907476345,-500.0,0.00056712,120]
[321136472,1711907476361,-500.0,0.00056712,120]
[321136473,1711907476377,-500.0,0.00056712,120]
[321136474,1711907476392,-614.73,0.00056712,120]
[321136475,1711907476406,-500.0,0.00056712,120]
[321136476,1711907476422,-500.0,0.00056712,120]
[321136477,1711907476439,-500.0,0.00056712,120]
[321136478,1711907476453,-398.59,0.00056712,120]
[321136479,1711907476470,-500.0,0.00056712,120]
[321136480,1711907476484,-500.0,0.00056712,120]
[321136481,1711907476500,-895.49,0.00056712,120]
[321136482,1711907476515,-744.4,0.00056712,120]
[321136483,1711907476530,-192.71,0.00056712,120]
[321136484,1711907476547,-500.0,0.00056712,120]
[321136485,1711907476561,-24217.88617886,0.00056717,90]
[321136486,1711907476577,-8430.989632,0.000568,30]
[321136487,1711907476591,-156.72357875,0.00056887,120]
[321136488,1711907476606,-400.0,0.00056973,120]
[321136489,1711907476621,-500.0,0.00056986,120]
[321136490,1711907476635,-600.62,0.00056986,120]
[321136491,1711907476649,-500.0,0.00056986,120]
[321136492,1711907476663,-594.97,0.00056986,120]
[321136493,1711907476677,-500.0,0.00056986,120]
[321136494,1711907476693,-500.0,0.00056986,120]
[321136495,1711907476708,-500.0,0.00056986,120]
[321136496,1711907476721,-500.0,0.00056986,120]
[321136497,1711907476736,-527.93610637,0.00056986,120]
[321136498,1711907476751,-700.81,0.00056986,120]
[321136499,1711907476767,-500.0,0.00056986,120]
[321136500,1711907476782,-505.88,0.00056986,120]
[321136501,1711907476796,-500.0,0.00056986,120]
[321136502,1711907476810,-500.0,0.00056986,120]
[321136503,1711907476826,-500.0,0.00056986,120]
[321136504,1711907476843,-552.74,0.00056986,120]
[321136505,1711907476857,-4907.73,0.00056986,120]
[321136506,1711907476872,-500.0,0.00056986,50]
[321136507,1711907476887,-1609.87,0.00056986,120]
[321136508,1711907476903,-500.0,0.00056986,120]
[321136509,1711907476921,-990.64,0.00056986,120]
[321136510,1711907476935,-500.0,0.00056986,120]
[321136511,1711907476949,-500.0,0.00056986,120]
[321136512,1711907476963,-555.74,0.00056986,120]
[321136513,1711907476978,-500.0,0.00056986,120]
[321136514,1711907476994,-10457.21,0.00056986,120]
[321136515,1711907477009,-500.0,0.00056986,120]
[321136516,1711907477025,-633.58,0.00056986,120]
[321136517,1711907477039,-964.49,0.00056986,120]
[321136518,1711907477055,-500.0,0.00056986,120]
[321136519,1711907477070,-500.0,0.00056986,120]
[321136520,1711907477087,-349.42,0.00056986,120]
[321136521,1711907477100,-755.7,0.00056986,120]
[321136522,1711907477115,-500.0,0.00056986,120]
[321136523,1711907477129,-722.56,0.00056986,120]
[321136524,1711907477146,-500.0,0.00056986,120]
[321136525,1711907477159,-500.0,0.00056986,120]
[321136526,1711907477169,-484.69,0.00056986,120]
[321136527,1711907477179,-1026.37,0.00056986,120]
[321136528,1711907477189,-1126.75,0.00056986,120]
[321136529,1711907477373,-1688.27,0.00056986,21]
[321136530,1711907477386,-500.0,0.00056986,120]
[321136531,1711907477396,-189.09,0.00056986,120]
[321136532,1711907477407,-500.0,0.00056986,120]
[321136533,1711907477418,-228.47,0.00056986,120]
[321136534,1711907477428,-660.13,0.00056986,120]
[321136535,1711907477438,-500.0,0.00056986,120]
[321136536,1711907477450,-500.0,0.00056986,120]
[321136537,1711907477462,-500.0,0.00056986,120]
[321136538,1711907477472,-500.0,0.00056986,120]
[321136539,1711907477483,-1092.39,0.00056986,120]
[321136540,1711907477495,-14029.33,0.00056986,120]
[321136541,1711907477505,-500.0,0.00056986,120]
[321136542,1711907477514,-1975.75,0.00056986,120]
[321136543,1711907477526,-500.0,0.00056986,120]
[321136544,1711907477536,-500.0,0.00056986,120]
[321136545,1711907477546,-500.0,0.00056986,120]
[321136546,1711907477555,-500.0,0.00056986,120]
[321136547,1711907477565,-500.0,0.00056986,120]
[321136548,1711907477576,-10099.07,0.00056986,120]
[321136549,1711907477586,-546.81,0.00056986,120]
[321136550,1711907477595,-500.0,0.00056986,120]
[321136551,1711907477605,-500.0,0.00056986,120]
[321136552,1711907477615,-500.0,0.00056986,120]
[321136553,1711907477624,-500.0,0.00056986,120]
[321136554,1711907477634,-500.0,0.00056986,120]
[321136555,1711907477645,-500.0,0.00056986,120]
[321136556,1711907477655,-500.0,0.00056986,120]
[321136557,1711907477664,-500.0,0.00056986,120]
[321136558,1711907477674,-500.0,0.00056986,120]
[321136559,1711907477683,-500.0,0.00056986,120]
[321136560,1711907477693,-500.0,0.00056986,120]
[321136561,1711907477704,-500.0,0.00056986,120]
[321136562,1711907477714,-5131.78,0.00056986,120]
[321136563,1711907477725,-500.0,0.00056986,120]
[321136564,1711907477735,-1715.12,0.00056986,120]
[321136565,1711907477744,-500.0,0.00056986,120]
[321136566,1711907477754,-500.0,0.00056986,120]
[321136567,1711907477764,-500.0,0.00056986,120]
[321136568,1711907477773,-500.0,0.00056986,120]
[321136569,1711907477782,-500.0,0.00056986,120]
[321136570,1711907477792,-626.85,0.00056986,120]
[321136571,1711907477802,-947.24,0.00056986,120]
[321136572,1711907477811,-440.54,0.00056986,120]
[321136573,1711907477821,-500.0,0.00056986,120]
[321136574,1711907477832,-500.0,0.00056986,120]
[321136575,1711907477841,-500.0,0.00056986,120]
[321136576,1711907477852,-500.0,0.00056986,120]
[321136577,1711907477861,-649.68,0.00056986,120]
[321136578,1711907477872,-500.0,0.00056986,120]
[321136579,1711907477882,-614.57,0.00056986,120]
[321136580,1711907477892,-6434.68,0.00056986,120]
[321136581,1711907477901,-916.81,0.00056986,120]
[321136582,1711907477912,-2281.86,0.00056986,120]
[321136583,1711907477922,-500.0,0.00056986,120]
[321136584,1711907477932,-500.0,0.00056986,120]
[321136585,1711907477941,-1094.52,0.00056986,120]
[321136586,1711907477950,-1655.18,0.00056986,120]
[321136587,1711907477960,-531.28,0.00056986,120]
[321136588,1711907477970,-1439.29,0.00056986,120]
[321136589,1711907477980,-500.0,0.00056986,120]
[321136590,1711907477989,-500.0,0.00056986,120]
[321136591,1711907478000,-1210.67,0.00056986,120]
[321136592,1711907478009,-627.19,0.00056986,120]
[321136593,1711907478019,-2658.74,0.00056986,120]
[321136594,1711907478029,-500.0,0.00056986,120]
[321136595,1711907478039,-3592.37,0.00056986,120]
[321136596,1711907478049,-500.0,0.00056986,120]
[321136597,1711907478059,-500.0,0.00056986,120]
[321136598,1711907478069,-611.83,0.00056986,120]
[321136599,1711907478079,-500.0,0.00056986,120]
[321136600,1711907478089,-500.0,0.00056986,120]
[321136601,1711907478098,-1276.31,0.00056986,120]
[321136602,1711907478107,-500.0,0.00056986,120]
[321136603,1711907478119,-2818.95,0.00056986,120]
[321136604,1711907478129,-577.42,0.00056986,120]
[321136605,1711907478139,-500.0,0.00056986,120]
[321136606,1711907478149,-1477.96,0.00056986,120]
[321136607,1711907478160,-1654.56,0.00056986,120]
[321136608,1711907478170,-591.88,0.00056986,120]
[321136609,1711907478179,-811.9,0.00056986,120]
[321136610,1711907478190,-500.0,0.00056986,120]
[321136611,1711907478202,-540.65,0.00056986,120]
[321136612,1711907478212,-1667.23,0.00056986,120]
[321136613,1711907478223,-500.0,0.00056986,120]
[321136614,1711907478233,-500.0,0.00056986,120]
[321136615,1711907478244,-500.0,0.00056986,120]
[321136616,1711907478255,-500.0,0.00056986,120]
[321136617,1711907478265,-718.34,0.00056986,120]
[321136618,1711907478274,-500.0,0.00056986,120]
[321136619,1711907478283,-1412.62,0.00056986,120]
[321136620,1711907478293,-505.8,0.00056986,120]
[321136621,1711907478304,-2163.44,0.00056986,120]
[321136622,1711907478313,-500.0,0.00056986,120]
[321136623,1711907478324,-4640.93,0.00056986,120]
[321136624,1711907478336,-2308.94,0.00056986,120]
[321136625,1711907478346,-4439.46,0.00056986,120]
[321136626,1711907478356,-713.74,0.00056986,120]
[321136627,1711907478366,-574.37,0.00056986,120]
[321136628,1711907478377,-818.49,0.00056986,120]
[321136629,1711907478387,-2084.69,0.00056986,120]
[321136630,1711907478398,-2318.29,0.00056986,120]
[321136631,1711907478409,-1422.03,0.00056986,120]
[321136632,1711907478420,-500.0,0.00056986,120]
[321136633,1711907478431,-500.0,0.00056986,2]
[321136634,1711907478441,-500.0,0.00056986,120]
[321136635,1711907478451,-4939.3,0.00056986,120]
[321136636,1711907478460,-500.0,0.00056986,120]
[321136637,1711907478470,-500.0,0.00056986,120]
[321136638,1711907478479,-6488.58,0.00056986,120]
[321136639,1711907478489,-500.0,0.00056986,120]
[321136640,1711907478501,-500.0,0.00056986,120]
[321136641,1711907478512,-3218.95,0.00056986,120]
[321136642,1711907478522,-1667.88,0.00056986,120]
[321136643,1711907478532,-677.03,0.00056986,120]
[321136644,1711907478542,-513.19,0.00056986,120]
[321136645,1711907478552,-848.39,0.00056986,120]
[321136646,1711907478563,-2067.47,0.00056986,120]
[321136647,1711907478573,-830.01,0.00056986,120]
[321136648,1711907478584,-500.0,0.00056986,120]
[321136649,1711907478594,-1115.96,0.00056986,120]
[321136650,1711907478604,-203.88660723,0.00056986,120]
[321136651,1711907478614,-722.46,0.00056986,120]
[321136652,1711907478624,-2662.12,0.00056986,120]
[321136653,1711907478634,-714.15,0.00056986,120]
[321136654,1711907478644,-308.18,0.00056986,120]
[321136655,1711907478654,-1147.71,0.00056986,120]
[321136656,1711907478663,-1997.29,0.00056986,120]
[321136657,1711907478672,-7535.35,0.00056986,120]
[321136658,1711907478682,-500.0,0.00056986,120]
[321136659,1711907478693,-500.0,0.00056986,120]
[321136660,1711907478703,-500.0,0.00056986,120]
[321136661,1711907478713,-3990.2,0.00056986,120]
[321136662,1711907478723,-2974.84,0.00056986,120]
[321136663,1711907478733,-199.81,0.00056986,120]
[321136664,1711907478742,-500.0,0.00056986,7]
[321136665,1711907478753,-624.32,0.00056986,120]
[321136666,1711907478763,-500.0,0.00056986,120]
[321136667,1711907478772,-521.69,0.00056986,120]
[321136668,1711907478782,-500.0,0.00056986,120]
[321136669,1711907478793,-500.0,0.00056986,120]
[321136670,1711907478803,-614.73,0.00056986,120]
[321136671,1711907478813,-500.0,0.00056986,120]